bitfinex-derivatives/quotes_SOLF0:USTF0_20241224
["timestamp","ask_amount","ask_price","bid_price","bid_amount"]
[1735052245386,11.78329143,194.86,194.78,8.10329143]
[1735052246584,2.5691,194.8,194.78,8.10329143]
[1735052251084,2.569,194.82,194.78,10.67259143]
[1735052252293,2.5692,194.8,194.78,8.10329143]
[1735052256292,2.5695,194.77,194.76,12.76404724]
[1735052257689,2.5699,194.75,194.72,8.10329143]
[1735052258697,8.10329143,194.79,194.72,8.10329143]
[1735052258894,3.68,194.8,194.71,12.76404724]
[1735052258895,2.57,194.73,194.71,12.76404724]
[1735052259397,2.57,194.73,194.7,20.86733867]
[1735052259787,8.10329143,194.77,194.7,20.86733867]
[1735052259991,2.5703,194.71,194.7,20.86733867]
[1735052260196,2.5703,194.71,194.7,12.76404724]
[1735052261896,8.10329143,194.73,194.66,20.86733867]
[1735052261897,2.5707,194.69,194.66,20.86733867]
[1735052262094,5.1376,194.83,194.68,8.10329143]
[1735052262295,2.5702,194.73,194.7,8.10329143]
[1735052263299,3.68,194.75,194.7,8.10329143]
[1735052263499,2.5702,194.72,194.7,8.10329143]
[1735052268807,2.5702,194.72,194.68,10.67399143]
[1735052269006,8.10329143,194.74,194.67,3.163]
[1735052269307,2.5707,194.69,194.67,11.26629143]
[1735052269601,2.5707,194.68,194.67,3.163]
[1735052269809,2.5707,194.68,194.6,177.07862872]
[1735052269810,3.66,194.69,194.63,56.43101668]
[1735052270001,8.10329143,194.68,194.63,56.43101668]
[1735052271009,8.10329143,194.66,194.6,8.10329143]
[1735052271307,8.10329143,194.66,194.58,8.10329143]
[1735052272098,8.10329143,194.64,194.58,8.10329143]
[1735052272305,12.68802993,194.67,194.57,4.8459]
[1735052272501,1.639,194.73,194.6,12.68802993]
[1735052272706,16.34802993,194.72,194.6,12.68802993]
[1735052273104,2.5715,194.62,194.6,12.68802993]
[1735052274411,3.66,194.66,194.6,12.68802993]
[1735052275009,3.66,194.66,194.61,2.5716]
[1735052275209,3.66,194.66,194.6,12.68802993]
[1735052275411,3.66,194.69,194.63,12.68802993]
[1735052275613,6.2307,194.69,194.64,2.5711]
[1735052276704,2.5707,194.69,194.64,2.5711]
[1735052277816,2.5707,194.68,194.64,2.5711]
[1735052278014,3.66,194.71,194.6,12.68802993]
[1735052278214,3.66,194.71,194.61,2.5716]
[1735052278414,2.5712,194.65,194.61,2.5716]
[1735052278614,3.66,194.71,194.6,12.68802993]
[1735052278817,3.66,194.71,194.6,15.25972993]
[1735052279416,2.5712,194.64,194.6,15.25972993]
[1735052280614,3.66,194.71,194.6,12.68802993]
[1735052281918,2.5714,194.63,194.6,12.68802993]
[1735052282521,3.66,194.71,194.6,12.68802993]
[1735052282717,2.5715,194.62,194.6,12.68802993]
[1735052284123,3.66,194.71,194.6,12.68802993]
[1735052284323,2.5713,194.64,194.6,15.25982993]
[1735052285129,3.66,194.68,194.6,15.25982993]
[1735052285827,3.66,194.68,194.6,12.68802993]
[1735052287430,3.66,194.68,194.6,15.25972993]
[1735052287631,3.66,194.68,194.6,2.5717]
[1735052288629,3.66,194.68,194.58,2.572]
[1735052289028,2.5711,194.65,194.58,2.572]
[1735052289226,3.66,194.68,194.59,12.68802993]
[1735052290135,3.66,194.7,194.59,12.68802993]
[1735052290433,16.34802993,194.7,194.57,4.8459]
[1735052291333,2.5715,194.62,194.58,2.572]
[1735052292034,2.5716,194.61,194.57,7.4181]
[1735052294135,2.5716,194.61,194.59,8.11870127]
[1735052295435,2.5715,194.63,194.59,10.69060127]
[1735052295641,2.5715,194.63,194.61,8.11870127]
[1735052296041,2.5715,194.63,194.59,2.5719]
[1735052296243,2.5715,194.63,194.61,8.11870127]
[1735052297335,2.5715,194.63,194.59,2.5719]
[1735052297336,2.5715,194.62,194.57,7.418]
[1735052297536,2.5715,194.62,194.59,8.11870127]
[1735052300935,3.66,194.64,194.59,8.11870127]
[1735052301141,2.5716,194.62,194.59,8.11870127]
[1735052301847,3.66,194.64,194.61,8.11870127]
[1735052302143,3.66,194.66,194.61,8.11870127]
[1735052302842,2.5716,194.64,194.61,8.11870127]
[1735052303147,3.66,194.66,194.59,8.11870127]
[1735052303443,2.5718,194.62,194.59,8.11870127]
[1735052304147,2.5716,194.63,194.61,8.11870127]
[1735052309252,2.5716,194.63,194.59,78.71224516]
[1735052309447,2.5716,194.63,194.61,8.11870127]
[1735052313447,3.66,194.66,194.61,8.11870127]
[1735052313648,2.5716,194.62,194.61,8.11870127]
[1735052318658,2.5717,194.61,194.6,12.93607019]
[1735052318955,2.5717,194.61,194.6,21.05477146]
[1735052319357,2.5717,194.61,194.6,12.93607019]
[1735052322554,2.5717,194.61,194.59,84.4007]
[1735052322555,11.77870127,194.66,194.59,8.11870127]
[1735052322762,2.5718,194.6,194.59,8.11870127]
[1735052322957,3.66,194.6,194.57,56.88085257]
[1735052323256,2.5721,194.58,194.57,56.88085257]
[1735052323758,2.5721,194.58,194.56,56.88085257]
[1735052324958,2.5721,194.58,194.55,8.11870127]
[1735052326757,3.66,194.6,194.54,8.11870127]
[1735052327068,8.11870127,194.58,194.53,12.92941272]
[1735052328165,2.5727,194.54,194.53,12.92941272]
[1735052328358,2.5727,194.54,194.52,56.88085257]
[1735052328359,8.11870127,194.58,194.51,8.11870127]
[1735052328564,8.11870127,194.56,194.5,12.92941272]
[1735052329955,8.11870127,194.56,194.49,8.11870127]
[1735052330162,8.11870127,194.54,194.48,8.11870127]
[1735052330465,2.5731,194.51,194.48,8.11870127]
[1735052332073,2.5731,194.51,194.42,90.17557885]
[1735052332074,3.66,194.53,194.42,61.73515257]
[1735052332268,2.5735,194.48,194.45,8.11870127]
[1735052333660,3.66,194.53,194.44,2.574]
[1735052333861,2.5734,194.49,194.47,8.11870127]
[1735052334467,2.5732,194.5,194.47,8.11870127]
[1735052334669,2.5732,194.5,194.49,8.11870127]
[1735052335771,2.5732,194.5,194.48,8.11870127]
[1735052340372,2.5733,194.49,194.46,8.11870127]
[1735052342373,6.2332,194.51,194.48,8.11870127]
[1735052342771,8.11870127,194.57,194.5,8.11870127]
[1735052342970,3.66,194.57,194.52,8.11870127]
[1735052343162,8.11870127,194.59,194.52,8.11870127]
[1735052343472,3.66,194.58,194.54,8.11870127]
[1735052344073,3.66,194.58,194.52,8.11870127]
[1735052344473,2.5727,194.54,194.52,8.11870127]
[1735052344669,3.66,194.58,194.5,2.5732]
[1735052344670,8.11870127,194.57,194.5,8.11870127]
[1735052345471,8.11870127,194.53,194.44,56.88085257]
[1735052345672,8.11870127,194.53,194.46,8.11870127]
[1735052345872,3.66,194.52,194.46,8.11870127]
[1735052346070,3.66,194.52,194.48,8.11870127]
[1735052346276,8.11870127,194.55,194.5,8.11870127]
[1735052346475,11.77870127,194.55,194.5,8.11870127]
[1735052346977,2.5729,194.53,194.48,2.5734]
[1735052347178,11.77870127,194.55,194.48,10.69210127]
[1735052347384,11.77870127,194.55,194.48,8.11870127]
[1735052347780,2.5731,194.51,194.48,8.11870127]
[1735052348272,11.77870127,194.55,194.48,8.11870127]
[1735052348473,2.5732,194.5,194.48,8.11870127]
[1735052348873,11.77870127,194.55,194.48,8.11870127]
[1735052349075,2.5733,194.49,194.46,8.11870127]
[1735052349273,2.5733,194.49,194.48,8.11870127]
[1735052351281,2.5733,194.49,194.45,2.5738]
[1735052351582,2.5733,194.49,194.47,8.11870127]
[1735052355187,2.5732,194.51,194.47,8.11870127]
[1735052355479,2.5732,194.51,194.49,8.11870127]
[1735052355679,8.11870127,194.55,194.5,2.5732]
[1735052355680,2.5726,194.55,194.5,2.5732]
[1735052355875,2.5726,194.55,194.52,8.11870127]
[1735052357884,2.5726,194.55,194.51,2.5731]
[1735052358388,8.11870127,194.57,194.5,8.11870127]
[1735052358589,8.11870127,194.57,194.49,10.69190127]
[1735052359083,2.5731,194.51,194.49,8.11870127]
[1735052359489,2.5731,194.51,194.48,21.04811399]
[1735052360089,2.5731,194.51,194.48,8.11870127]
[1735052362286,2.5731,194.51,194.5,8.11870127]
[1735052365692,2.5731,194.51,194.48,56.88085257]
[1735052366789,2.5731,194.51,194.49,12.93430322]
[1735052366992,2.5731,194.51,194.49,21.05300449]
[1735052368995,2.5731,194.51,194.49,8.11870127]
[1735052369896,2.5731,194.51,194.49,21.05300449]
[1735052371100,2.5731,194.51,194.49,8.11870127]
[1735052376994,8.11870127,194.55,194.49,8.11870127]
[1735052377199,2.5729,194.52,194.49,8.11870127]
[1735052380007,3.2226,194.63,194.49,8.11870127]
[1735052380202,3.66,194.62,194.53,8.11870127]
[1735052380416,8.11870127,194.6,194.53,8.11870127]
[1735052380603,10.69090127,194.58,194.53,10.69130127]
[1735052380807,8.11870127,194.58,194.51,8.11870127]
[1735052381205,2.5724,194.56,194.51,64.99955384]
[1735052381406,3.66,194.56,194.51,64.99955384]
[1735052381603,11.77870127,194.56,194.51,56.88085257]
[1735052381907,2.5725,194.55,194.51,56.88085257]
[1735052382204,2.5725,194.55,194.49,69.73615384]
[1735052382408,2.5725,194.55,194.49,72.30945384]
[1735052383507,2.5725,194.55,194.49,15.42860127]
[1735052385909,2.5725,194.55,194.5,12.94845379]
[1735052386505,8.11870127,194.52,194.5,12.94845379]
[1735052386709,8.11870127,194.52,194.49,19.42406409]
[1735052386914,8.11870127,194.52,194.47,69.53588136]
[1735052386915,8.11870127,194.5,194.47,69.53588136]
[1735052387113,8.11870127,194.52,194.47,69.53588136]
[1735052387114,8.11870127,194.48,194.47,69.53588136]
[1735052387514,33.00977408,194.55,194.47,69.53588136]
[1735052387715,8.11870127,194.5,194.47,69.53588136]
[1735052387910,8.11870127,194.5,194.4,4.5795]
[1735052388115,8.11870127,194.5,194.44,8.11870127]
[1735052389219,2.5733,194.49,194.44,8.11870127]
[1735052391813,2.5733,194.49,194.46,8.11870127]
[1735052394511,8.11870127,194.52,194.46,8.11870127]
[1735052394708,2.5735,194.48,194.46,8.11870127]
[1735052395618,1.5381,194.59,194.46,8.11870127]
[1735052395814,8.11870127,194.56,194.49,8.11870127]
[1735052396015,8.11870127,194.56,194.37,4.6466]
[1735052396016,31.4145852,194.61,194.51,8.11870127]
[1735052396214,8.11870127,194.58,194.51,8.11870127]
[1735052396815,2.5725,194.56,194.53,8.11870127]
[1735052397120,8.11870127,194.6,194.53,8.11870127]
[1735052397320,2.5722,194.57,194.53,10.69140127]
[1735052397620,8.11870127,194.58,194.52,8.11870127]
[1735052398216,2.5722,194.57,194.52,10.69150127]
[1735052398418,1.5381,194.64,194.54,8.11870127]
[1735052398614,3.66,194.63,194.58,8.11870127]
[1735052398819,2.5716,194.62,194.58,8.11870127]
[1735052399019,8.11870127,194.62,194.48,3.66]
[1735052399322,8.11870127,194.58,194.5,8.11870127]
[1735052399515,8.6249713,194.7,194.49,8.11870127]
[1735052399516,8.11870127,194.54,194.49,8.11870127]
[1735052399712,2.5732,194.5,194.47,8.11870127]
[1735052400012,8.11870127,194.48,194.43,142.9979695]
[1735052400518,2.5738,194.45,194.43,142.9979695]
[1735052400714,8.11870127,194.48,194.43,142.9979695]
[1735052400910,2.5737,194.46,194.43,142.9979695]
[1735052401115,2.5737,194.46,194.44,8.11870127]
[1735052401316,3.64,194.49,194.44,8.11870127]
[1735052402016,3.64,194.49,194.43,142.9979695]
[1735052402017,1.5358,194.61,194.46,8.11870127]
[1735052402214,8.11870127,194.6,194.52,8.11870127]
[1735052402411,8.11870127,194.56,194.5,8.11870127]
[1735052402720,3.64,194.6,194.44,4.7246]
[1735052402721,8.11870127,194.54,194.48,8.11870127]
[1735052403022,11.75870127,194.54,194.48,8.11870127]
[1735052403411,11.75870127,194.54,194.46,8.11870127]
[1735052403616,8.11870127,194.52,194.46,8.11870127]
[1735052404526,2.5733,194.49,194.46,8.11870127]
[1735052405818,3.64,194.54,194.44,7.2984]
[1735052405819,2.5731,194.51,194.48,8.11870127]
[1735052406824,2.5734,194.48,194.44,4.7246]
[1735052407024,3.64,194.54,194.46,8.11870127]
[1735052407225,3.64,194.54,194.48,8.11870127]
[1735052407418,2.5731,194.51,194.48,8.11870127]
[1735052408323,2.5731,194.51,194.45,15.27403205]
[1735052409420,2.5731,194.51,194.46,2.5736]
[1735052410124,2.5731,194.51,194.45,12.70033205]
[1735052410521,12.70033205,194.58,194.45,12.70033205]
[1735052410825,14.23613205,194.61,194.48,12.70033205]
[1735052411020,3.66,194.6,194.48,12.70033205]
[1735052411221,2.5727,194.54,194.48,15.27363205]
[1735052411622,3.66,194.6,194.48,15.27363205]
[1735052411926,2.5727,194.54,194.48,15.27363205]
[1735052412224,3.66,194.6,194.48,15.27363205]
[1735052412419,2.5729,194.53,194.48,15.27363205]
[1735052412924,3.66,194.6,194.49,2.5732]
[1735052413319,2.5726,194.55,194.49,2.5732]
[1735052414224,3.64,194.59,194.49,2.5732]
[1735052414427,2.5726,194.54,194.49,2.5732]
[1735052414620,3.64,194.59,194.48,12.70033205]
[1735052414822,3.64,194.59,194.48,15.27373205]
[1735052416125,3.64,194.59,194.5,2.5731]
[1735052416426,3.64,194.59,194.51,14.33563205]
[1735052416626,3.64,194.59,194.51,1.6353]
[1735052417431,2.5728,194.53,194.51,1.6353]
[1735052418727,12.70033205,194.58,194.51,1.6353]
[1735052418925,2.5729,194.52,194.51,1.6353]
[1735052422134,3.64,194.59,194.46,15.27393205]
[1735052422135,2.573,194.51,194.46,15.27393205]
[1735052422735,2.5729,194.52,194.47,2.5735]
[1735052422934,3.64,194.59,194.49,12.70033205]
[1735052423134,12.70033205,194.61,194.49,12.70033205]
[1735052423331,3.64,194.6,194.49,12.70033205]
[1735052423533,2.5727,194.54,194.49,12.70033205]
[1735052423731,3.64,194.6,194.49,12.70033205]
[1735052424134,3.64,194.6,194.46,69.89066333]
[1735052424534,2.5732,194.5,194.46,69.89066333]
[1735052424834,1.5337,194.62,194.46,57.19033128]
[1735052424835,3.64,194.54,194.46,57.19033128]
[1735052425135,3.64,194.53,194.46,57.19033128]
[1735052426435,2.5735,194.47,194.46,57.19033128]
[1735052427134,6.2135,194.47,194.46,57.19033128]
[1735052428333,6.2135,194.47,194.46,54.68703128]
[1735052428532,6.2135,194.47,194.42,222.00659164]
[1735052428533,2.5741,194.44,194.34,15.27553205]
[1735052428728,3.64,194.47,194.34,15.27553205]
[1735052429136,3.64,194.47,194.34,2.5752]
[1735052429137,2.5746,194.4,194.34,2.5752]
[1735052429338,2.5746,194.4,194.34,15.27553205]
[1735052430838,12.70033205,194.46,194.34,12.70033205]
[1735052431536,2.5748,194.38,194.33,15.27573205]
[1735052432140,2.5748,194.38,194.36,8.13898259]
[1735052432642,2.5749,194.37,194.36,8.13898259]
[1735052432835,2.5749,194.37,194.34,8.13898259]
[1735052434042,3.64,194.41,194.34,8.13898259]
[1735052434249,2.575,194.37,194.33,1.6303]
[1735052434934,12.71832424,194.5,194.35,12.71832424]
[1735052435139,3.64,194.49,194.39,12.71832424]
[1735052435340,3.64,194.49,194.39,15.29282424]
[1735052436942,3.64,194.49,194.39,12.71832424]
[1735052437143,3.64,194.48,194.41,2.5743]
[1735052437343,2.5738,194.46,194.4,1.5393]
[1735052437546,2.5738,194.46,194.41,1.5364]
[1735052438047,16.35832424,194.48,194.4,3.1007]
[1735052438248,16.35832424,194.48,194.4,1.5393]
[1735052438449,2.5747,194.38,194.36,12.71832424]
[1735052438642,3.64,194.42,194.35,1.5364]
[1735052438846,3.64,194.41,194.35,1.5364]
[1735052439650,2.575,194.37,194.35,1.5364]
[1735052439845,3.64,194.41,194.35,1.5364]
[1735052440045,3.64,194.41,194.34,1.5057]
[1735052440350,2.5751,194.35,194.34,1.5057]
[1735052442146,2.5751,194.35,194.32,12.52736982]
[1735052442147,2.5753,194.34,194.32,12.52736982]
[1735052443449,3.64,194.41,194.32,12.52736982]
[1735052443645,2.5754,194.33,194.32,12.52736982]
[1735052448754,3.64,194.35,194.24,1.6408]
[1735052450356,3.64,194.35,194.22,12.71832424]
[1735052450557,12.71832424,194.33,194.21,3.186]
[1735052451750,12.71832424,194.33,194.19,12.71832424]
[1735052451947,2.5766,194.24,194.19,12.71832424]
[1735052452149,12.71832424,194.33,194.19,12.71832424]
[1735052452150,3.64,194.25,194.19,12.71832424]
[1735052452449,3.64,194.25,194.11,56.81354328]
[1735052452646,3.64,194.25,194.16,12.71832424]
[1735052452850,2.5771,194.2,194.16,12.71832424]
[1735052453552,2.5771,194.2,194.14,2.5778]
[1735052453752,2.5771,194.2,194.15,12.71832424]
[1735052454851,3.64,194.25,194.15,12.71832424]
[1735052455059,2.5773,194.19,194.15,12.71832424]
[1735052455858,2.5773,194.18,194.15,12.71832424]
[1735052456748,2.5772,194.2,194.15,15.29602424]
[1735052456946,2.5772,194.2,194.16,1.5176]
[1735052461354,2.5774,194.18,194.16,1.5176]
[1735052462555,3.64,194.23,194.16,1.5176]
[1735052462755,3.64,194.23,194.15,12.71832424]
[1735052463061,3.64,194.23,194.13,2.578]
[1735052463664,2.5771,194.2,194.13,2.578]
[1735052463859,3.64,194.23,194.13,2.578]
[1735052464265,2.5776,194.17,194.12,15.29642424]
[1735052464460,1.5933,194.28,194.15,12.71832424]
[1735052464665,16.04412424,194.29,194.18,15.29562424]
[1735052464866,2.5766,194.24,194.18,15.29562424]
[1735052465066,3.64,194.26,194.19,12.71832424]
[1735052465266,3.64,194.26,194.19,15.29542424]
[1735052465468,2.5764,194.25,194.19,12.71832424]
[1735052465669,2.5764,194.25,194.2,1.5778]
[1735052466070,2.5764,194.25,194.21,2.5769]
[1735052466373,3.64,194.31,194.22,12.71832424]
[1735052467074,2.5759,194.3,194.25,12.71832424]
[1735052467469,3.64,194.33,194.25,15.29462424]
[1735052467873,3.64,194.33,194.25,12.71832424]
[1735052468074,3.64,194.33,194.22,12.71832424]
[1735052468364,2.5764,194.26,194.22,12.71832424]
[1735052468875,2.5767,194.23,194.21,3.2027]
[1735052469075,3.64,194.27,194.21,1.64]
[1735052469269,3.64,194.27,194.2,1.5778]
[1735052469477,2.5769,194.21,194.2,1.5778]
[1735052470065,3.64,194.27,194.16,12.71832424]
[1735052470373,3.64,194.27,194.17,1.6292]
[1735052471176,5.2091,194.27,194.17,1.6292]
[1735052471477,12.71832424,194.25,194.13,18.50842424]
[1735052472273,2.5769,194.22,194.13,18.50842424]
[1735052472471,3.64,194.21,194.13,18.50842424]
[1735052473268,2.5772,194.2,194.14,2.5778]
[1735052473475,3.2145,194.27,194.16,12.71832424]
[1735052473775,3.64,194.23,194.16,12.71832424]
[1735052473977,2.5762,194.27,194.19,12.71832424]
[1735052474181,2.5762,194.27,194.2,1.605]
[1735052474697,2.5762,194.27,194.21,1.5888]
[1735052474878,2.5762,194.27,194.21,3.1117]
[1735052475080,3.64,194.29,194.22,12.71832424]
[1735052476077,3.64,194.29,194.25,2.5763]
[1735052476375,2.5757,194.3,194.25,2.5763]
[1735052476576,2.5756,194.31,194.26,2.5762]
[1735052476778,3.64,194.32,194.26,2.5762]
[1735052476978,3.64,194.32,194.25,12.71832424]
[1735052477178,3.64,194.32,194.22,12.71832424]
[1735052478081,6.2156,194.32,194.25,2.5763]
[1735052478279,6.2156,194.32,194.22,12.71832424]
[1735052478480,6.2156,194.32,194.26,12.71832424]
[1735052478783,17.57182424,194.4,194.26,15.29442424]
[1735052478983,2.5751,194.35,194.29,12.71832424]
[1735052479185,3.64,194.37,194.29,12.71832424]
[1735052479373,12.71832424,194.43,194.32,12.71832424]
[1735052479580,2.5749,194.37,194.32,12.71832424]
[1735052479778,3.64,194.39,194.32,12.71832424]
[1735052479980,3.64,194.39,194.31,3.2324]
[1735052480177,2.5755,194.33,194.31,3.2324]
[1735052480382,3.64,194.39,194.3,1.5272]
[1735052480878,2.5751,194.35,194.3,1.5272]
[1735052481276,3.64,194.39,194.3,4.1028]
[1735052481478,2.5751,194.36,194.3,4.1028]
[1735052481674,12.71832424,194.42,194.3,1.5272]
[1735052481877,3.64,194.41,194.32,12.71832424]
[1735052482174,2.5748,194.38,194.32,15.29372424]
[1735052482373,2.5748,194.38,194.32,12.71832424]
[1735052482682,2.5748,194.38,194.32,14.36262424]
[1735052483480,2.5748,194.38,194.33,2.5753]
[1735052484987,3.3364,194.47,194.32,14.36262424]
[1735052485184,2.5743,194.42,194.36,2.5749]
[1735052485380,3.3364,194.47,194.38,12.71832424]
[1735052485581,2.5742,194.42,194.38,12.71832424]
[1735052485784,16.35832424,194.47,194.35,12.71832424]
[1735052485984,12.71832424,194.44,194.32,1.6443]
[1735052487385,2.5744,194.41,194.32,1.6443]
[1735052487682,3.64,194.4,194.32,1.6443]
[1735052488283,2.5751,194.35,194.3,1.5272]
[1735052488590,3.64,194.4,194.3,1.5272]
[1735052488790,12.71832424,194.38,194.26,12.71832424]
[1735052489190,2.5756,194.31,194.26,15.29442424]
[1735052489985,2.5758,194.3,194.26,12.71832424]
[1735052490890,2.5756,194.32,194.27,2.576]
[1735052493885,2.5758,194.3,194.26,12.71832424]
[1735052495091,2.5756,194.32,194.28,2.5759]
[1735052498298,2.5757,194.3,194.26,15.29452424]
[1735052498984,2.5755,194.32,194.27,2.5761]
[1735052499190,3.64,194.33,194.29,12.71832424]
[1735052499789,3.64,194.36,194.29,15.29412424]
[1735052501394,2.5753,194.34,194.29,15.29412424]
[1735052502898,2.5756,194.32,194.29,12.71832424]
[1735052503295,3.64,194.36,194.29,12.71832424]
[1735052503494,2.5756,194.31,194.29,12.71832424]
[1735052503689,3.64,194.36,194.26,12.71832424]
[1735052504790,2.5756,194.32,194.26,15.29442424]
[1735052504994,2.5756,194.32,194.26,12.71832424]
[1735052505198,2.5756,194.32,194.27,2.5761]
[1735052505700,3.64,194.36,194.27,2.5761]
[1735052505896,3.64,194.36,194.26,12.71832424]
[1735052506092,3.64,194.36,194.26,15.29452424]
[1735052506797,2.5753,194.33,194.27,2.5761]
[1735052506997,3.64,194.36,194.27,2.5761]
[1735052508299,2.5756,194.32,194.28,2.576]
[1735052508702,3.64,194.36,194.23,56.81354328]
[1735052508896,2.5759,194.29,194.25,12.71832424]
[1735052510397,2.5759,194.29,194.25,15.29472424]
[1735052511305,2.5758,194.3,194.26,2.5762]
[1735052511805,2.5758,194.3,194.25,12.71832424]
[1735052512001,2.5758,194.3,194.25,15.29462424]
[1735052513402,2.5758,194.3,194.26,2.5762]
[1735052514205,2.5758,194.3,194.25,15.29462424]
[1735052514500,3.64,194.36,194.28,12.71832424]
[1735052514908,2.5753,194.33,194.29,2.5759]
[1735052515407,3.64,194.35,194.28,12.71832424]
[1735052515596,2.5755,194.32,194.28,15.29432424]
[1735052516306,2.5754,194.33,194.28,12.71832424]
[1735052516710,12.71832424,194.41,194.28,12.71832424]
[1735052517005,3.64,194.4,194.28,15.29432424]
[1735052518408,2.5755,194.32,194.28,15.29432424]
[1735052520707,3.64,194.34,194.25,12.71832424]
[1735052521105,2.5759,194.29,194.25,12.71832424]
[1735052521305,2.5759,194.29,194.28,57.36272858]
[1735052522406,2.5759,194.29,194.27,8.14624485]
[1735052522604,8.14624485,194.32,194.25,76.75340298]
[1735052522811,8.14624485,194.3,194.25,76.75340298]
[1735052523007,8.14624485,194.28,194.25,76.75340298]
[1735052523212,10.72254485,194.26,194.25,76.75340298]
[1735052523410,14.36254485,194.26,194.25,76.75340298]
[1735052523609,14.36254485,194.26,194.25,68.14250298]
[1735052524311,2.5773,194.19,194.17,12.80402029]
[1735052524815,16.38255393,194.26,194.17,12.80402029]
[1735052525013,16.38255393,194.26,194.16,22.6879744]
[1735052525306,2.5775,194.17,194.16,1.6605]
[1735052526801,2.5775,194.17,194.13,14.25385393]
[1735052527306,2.5778,194.15,194.13,14.25385393]
[1735052527512,2.5778,194.15,194.13,1.5113]
[1735052527713,3.64,194.2,194.13,1.5113]
[1735052528114,2.5773,194.18,194.13,1.5113]
[1735052528314,3.64,194.2,194.11,1.6368]
[1735052528813,2.578,194.14,194.11,1.6368]
[1735052529010,3.64,194.14,194.1,14.27155393]
[1735052529704,1.1313,194.14,194.1,14.27155393]
[1735052529913,12.74255393,194.3,194.13,12.74255393]
[1735052529914,3.64,194.18,194.13,12.74255393]
[1735052530311,2.5777,194.16,194.13,12.74255393]
[1735052530506,3.64,194.19,194.13,12.74255393]
[1735052530710,3.64,194.22,194.16,12.74255393]
[1735052530912,12.74255393,194.31,194.19,12.74255393]
[1735052531210,1.523,194.33,194.22,12.74255393]
[1735052531414,3.64,194.32,194.22,12.74255393]
[1735052531614,2.5765,194.24,194.19,12.74255393]
[1735052531913,3.64,194.25,194.19,12.74255393]
[1735052532114,3.64,194.27,194.22,15.31935393]
[1735052532306,2.5761,194.28,194.23,1.5555]
[1735052532506,8.9254465,194.39,194.23,14.29805393]
[1735052532507,3.64,194.32,194.23,14.29805393]
[1735052532715,3.64,194.32,194.26,12.74255393]
[1735052533309,6.2156,194.32,194.26,15.31875393]
[1735052534221,2.5756,194.32,194.26,15.31875393]
[1735052534517,3.64,194.35,194.29,12.74255393]
[1735052534715,3.64,194.35,194.27,2.576]
[1735052534919,2.5755,194.33,194.27,2.576]
[1735052535522,3.64,194.35,194.26,12.74255393]
[1735052535718,3.64,194.35,194.24,1.6027]
[1735052536024,2.5762,194.27,194.24,1.6027]
[1735052536221,3.64,194.28,194.2,14.27045393]
[1735052536423,3.64,194.27,194.2,14.27045393]
[1735052536624,2.5765,194.24,194.2,14.27045393]
[1735052536920,3.64,194.27,194.2,1.5279]
[1735052537224,2.5768,194.22,194.2,1.5279]
[1735052541626,2.5769,194.21,194.2,1.5279]
[1735052542226,2.5772,194.2,194.17,12.74255393]
[1735052542422,3.64,194.27,194.17,12.74255393]
[1735052542820,2.5771,194.2,194.17,12.74255393]
[1735052543228,2.5769,194.22,194.17,12.74255393]
[1735052543533,3.64,194.27,194.17,12.74255393]
[1735052543726,3.64,194.27,194.18,1.6112]
[1735052544131,2.5767,194.23,194.19,2.5772]
[1735052544727,2.5767,194.23,194.18,1.6112]
[1735052545032,2.577,194.21,194.18,1.6112]
[1735052545429,2.5768,194.23,194.18,1.6112]
[1735052545934,3.64,194.29,194.2,12.74255393]
[1735052546124,3.64,194.28,194.21,1.5557]
[1735052547230,2.5763,194.26,194.21,1.5557]
[1735052547432,3.64,194.28,194.21,1.5557]
[1735052547831,12.74255393,194.33,194.23,15.31915393]
[1735052548134,3.64,194.32,194.23,15.31915393]
[1735052548429,2.5757,194.31,194.23,12.74255393]
[1735052548632,3.64,194.32,194.26,12.74255393]
[1735052548928,2.5761,194.28,194.23,15.31925393]